bitfinex/quotes_ETHUSD_20220201
["timestamp","ask_amount","ask_price","bid_price","bid_amount"]
[1643752122809,1.23416224,2788.1,2787.7,0.1792]
[1643752123015,6.9792,2788.0,2786.8,2.0]
[1643752123309,6.9792,2788.0,2786.6,1.61000811]
[1643752123310,10.07305857,2788.0,2786.6,1.1626]
[1643752123511,9.39247999,2788.0,2786.6,1.1626]
[1643752123711,2.0,2787.9,2786.6,1.1626]
[1643752123910,0.34641458,2786.8,2786.6,1.1626]
[1643752124113,0.34641458,2786.8,2786.5,0.1292]
[1643752125411,0.34641458,2786.8,2786.3,0.15575749]
[1643752125847,0.8864141,2787.0,2786.3,1.35300749]
[1643752126047,0.8864141,2787.0,2786.3,2.25021749]
[1643752126248,0.8864141,2787.0,2786.4,0.3]
[1643752126655,0.8864141,2787.0,2786.4,1.3]
[1643752126854,0.44724644,2786.7,2786.5,0.89721]
[1643752127054,0.8864141,2787.0,2786.5,0.89721]
[1643752127457,0.8864141,2787.0,2786.3,0.01230749]
[1643752127656,0.8864141,2787.0,2786.2,0.93866224]
[1643752127856,0.8864141,2787.0,2786.2,0.1794]
[1643752128057,0.32086225,2786.6,2786.2,0.1794]
[1643752128757,0.8864141,2787.0,2786.2,1.4794]
[1643752129257,0.8864141,2787.0,2786.4,0.89725]
[1643752129700,0.1794,2787.5,2786.7,0.37958131]
[1643752130100,0.04999999,2787.7,2786.7,0.1792]
[1643752131007,0.92087796,2787.5,2786.7,0.1792]
[1643752131207,0.44519984,2787.2,2786.7,1.07626]
[1643752131405,0.44519984,2787.2,2786.8,0.89707]
[1643752131802,0.44519984,2787.2,2786.9,1.19705]
[1643752132004,0.92087796,2787.5,2786.9,1.19705]
[1643752132404,0.92087796,2787.5,2786.9,0.3]
[1643752132606,0.92087796,2787.5,2786.9,1.3]
[1643752132806,0.92087796,2787.5,2786.9,0.3]
[1643752133107,1.27458417,2787.5,2786.8,1.3]
[1643752133345,1.27458417,2787.5,2786.8,0.3]
[1643752133751,1.27458417,2787.5,2786.7,1.19712]
[1643752134348,1.27458417,2787.5,2786.7,2.19712]
[1643752135149,1.27458417,2787.5,2786.7,1.19712]
[1643752135349,1.27458417,2787.5,2786.7,2.19712]
[1643752135550,1.27458417,2787.5,2786.7,2.14712]
[1643752135753,1.27458417,2787.5,2786.7,1.14712]
[1643752136153,1.27458417,2787.5,2786.7,2.14712]
[1643752136850,1.27458417,2787.5,2786.7,1.14712]
[1643752137109,1.27458417,2787.5,2786.7,2.14712]
[1643752137607,1.27458417,2787.5,2786.7,1.14712]
[1643752137808,1.27458417,2787.5,2786.8,0.89706]
[1643752138009,0.35370621,2787.5,2786.8,0.89706]
[1643752138211,0.1792,2787.6,2786.9,0.3]
[1643752138415,0.1792,2788.1,2786.9,0.3]
[1643752138817,0.1792,2788.1,2786.8,1.3]
[1643752139213,0.42271458,2787.7,2787.0,0.35547333]
[1643752139413,1.20022793,2787.7,2787.2,0.69100774]
[1643752139814,1.20022793,2787.7,2787.2,0.64100774]
[1643752141250,1.20022793,2787.7,2787.1,0.89701]
[1643752142450,1.15022793,2787.7,2787.1,0.89701]
[1643752143256,1.15022793,2787.7,2787.0,0.871867]
[1643752144607,1.15022793,2787.7,2786.9,0.89704]
[1643752145409,1.15022793,2787.7,2786.8,1.0]
[1643752145810,0.32815372,2787.2,2786.8,1.0]
[1643752146010,0.77751335,2787.7,2786.8,1.0]
[1643752146411,0.6760643,2787.2,2786.7,2.92025]
[1643752146617,0.6760643,2787.2,2786.5,0.1794]
[1643752146813,0.6760643,2787.2,2786.4,0.19223384]
[1643752147011,0.6760643,2787.2,2786.3,0.6194349]
[1643752147012,0.34384533,2786.9,2786.3,0.6194349]
[1643752147211,0.6760643,2787.2,2786.3,0.6194349]
[1643752147411,0.79368444,2786.7,2786.3,0.1794]
[1643752147612,0.79368444,2786.7,2785.9,4.164]
[1643752147815,0.79368444,2786.7,2785.6,1.56659994]
[1643752148016,0.1794,2786.6,2785.6,1.38719994]
[1643752148454,1.23521748,2785.8,2785.6,1.38719994]
[1643752148656,2.1794,2786.6,2785.6,1.38719994]
[1643752148657,0.1794,2786.6,2785.6,1.38719994]
[1643752148852,0.1794,2786.7,2785.6,1.38719994]
[1643752149052,2.1794,2786.7,2785.6,1.38719994]
[1643752149653,0.516,2786.6,2785.6,1.38719994]
[1643752149854,0.32716827,2786.0,2785.6,1.38719994]
[1643752150155,0.32716827,2786.0,2785.1,0.1794]
[1643752150354,0.32716827,2786.0,2785.0,1.1082822]
[1643752150355,3.13381975,2785.9,2785.0,1.1082822]
[1643752150555,3.31321975,2785.9,2785.2,0.04092648]
[1643752151154,1.074071,2785.9,2785.2,0.04092648]
[1643752151358,1.074071,2785.9,2785.0,1.09920868]
[1643752152402,0.31587911,2785.2,2785.0,1.09920868]
[1643752152605,0.1794,2785.9,2785.0,1.09920868]
[1643752152800,0.1794,2786.3,2785.0,1.09920868]
[1643752153607,0.80466303,2785.9,2785.0,1.09920868]
[1643752153808,0.1794,2785.8,2785.0,1.09920868]
[1643752154612,0.93865573,2785.4,2785.0,1.09920868]
[1643752154810,2.4844369,2785.3,2785.0,1.09920868]
[1643752155845,3.15741774,2785.1,2785.0,1.04920868]
[1643752156045,5.26357657,2785.1,2785.0,1.04920868]
[1643752156249,0.40741774,2785.1,2785.0,1.04920868]
[1643752156445,0.40741774,2785.1,2784.2,0.08819997]
[1643752157247,0.40741774,2785.1,2784.4,1.16452458]
[1643752157448,0.40741774,2785.1,2784.4,0.72928335]
[1643752158248,0.40741774,2785.1,2784.2,0.08819997]
[1643752158454,2.4620468,2785.3,2783.9,1.4145]
[1643752158455,0.39727053,2784.3,2783.9,1.4145]
[1643752158655,0.1794,2785.0,2783.8,0.1794]
[1643752158854,2.1794,2785.1,2783.7,0.31759997]
[1643752159254,2.1794,2785.1,2783.7,0.61759997]
[1643752159454,0.79423736,2784.6,2784.0,0.93260357]
[1643752159706,0.79423736,2784.6,2783.7,0.98102952]
[1643752159707,0.42398066,2784.4,2783.7,0.98102952]
[1643752160106,0.42398066,2784.4,2783.7,0.31759997]
[1643752160405,0.42398066,2784.4,2783.7,0.1794]
[1643752160605,0.1794,2784.3,2783.5,0.25]
[1643752160804,0.1794,2784.3,2783.1,0.26759997]
[1643752160805,0.72458408,2783.8,2783.1,0.26759997]
[1643752161007,0.72458408,2783.8,2783.1,0.08819997]
[1643752161203,0.43769722,2783.5,2783.1,0.08819997]
[1643752161407,0.43769722,2783.5,2782.7,1.19]
[1643752161408,0.43769722,2783.5,2782.7,0.1796]
[1643752161607,0.95369722,2783.5,2782.5,0.15]
[1643752161802,0.95369722,2783.5,2782.2,0.1796]
[1643752162406,0.44819305,2783.0,2782.2,0.1796]
[1643752162807,0.9126825,2783.1,2782.2,0.1796]
[1643752163661,0.42695676,2782.7,2782.2,0.1796]
[1643752164159,2.62227515,2783.4,2782.2,0.1796]
[1643752164959,0.35900059,2783.0,2782.4,0.4443407]
[1643752165160,0.35900059,2783.0,2782.1,3.36304066]
[1643752165361,1.21253038,2783.0,2782.1,3.36304066]
[1643752165961,2.04424951,2782.9,2782.1,3.36304066]
[1643752166363,2.04424951,2782.9,2781.9,0.1796]
[1643752166364,0.9151283,2782.2,2781.9,0.1796]
[1643752166562,0.9151283,2782.2,2781.7,1.2879822]
[1643752167200,0.9151283,2782.2,2781.7,1.1082822]
[1643752167408,0.40265268,2781.9,2781.7,1.1082822]
[1643752168199,0.1797,2782.1,2781.7,1.1082822]
[1643752168409,0.1797,2782.6,2781.7,1.1082822]
[1643752168806,0.1797,2782.6,2781.7,1.0582822]
[1643752169309,0.1797,2782.6,2782.1,0.79381401]
[1643752169509,3.6491,2783.1,2782.1,0.79381401]
[1643752169510,0.1797,2782.7,2782.1,0.79381401]
[1643752169710,0.1797,2783.0,2782.1,0.79381401]
[1643752169912,0.1796,2783.3,2782.1,0.79381401]
[1643752170308,0.44787414,2783.0,2782.7,0.81423965]
[1643752170507,0.44787414,2783.0,2782.3,0.40062233]
[1643752170508,0.1796,2782.9,2782.3,0.40062233]
[1643752171651,0.1796,2782.9,2782.7,0.84382115]
[1643752171854,0.1796,2783.7,2782.8,4.67716981]
[1643752172153,1.2397,2784.3,2782.7,0.84382115]
[1643752172154,0.1796,2783.8,2782.7,0.84382115]
[1643752172555,0.43282464,2783.5,2782.8,2.23103958]
[1643752172755,0.1796,2783.4,2782.8,2.23103958]
[1643752172958,0.1796,2783.4,2783.2,0.8484769]
[1643752173358,0.1796,2783.4,2782.5,0.01215029]
[1643752173560,2.22951948,2783.4,2782.3,0.1796]
[1643752173758,2.22951948,2783.4,2781.9,0.516]
[1643752173759,2.22951948,2783.4,2782.2,0.1796]
[1643752173962,0.1796,2783.4,2782.6,0.44004945]
[1643752174601,0.1796,2783.4,2783.0,0.93686083]
[1643752174806,0.1796,2783.6,2783.0,0.93686083]
[1643752175008,0.1796,2783.6,2783.0,1.23686083]
[1643752175216,2.60955345,2784.6,2783.0,1.53686083]
[1643752175217,2.0,2784.5,2783.0,1.53686083]
[1643752175409,3.19222015,2784.7,2783.5,0.01263899]
[1643752175410,0.1796,2784.4,2783.5,0.01263899]
[1643752175610,3.285,2784.9,2783.5,0.01263899]
[1643752175611,0.1796,2784.6,2783.5,0.01263899]
[1643752175806,2.0,2784.8,2783.5,0.01263899]
[1643752175807,0.32983898,2784.3,2783.5,0.01263899]
[1643752176008,0.32983898,2784.3,2783.9,0.8905569]
[1643752176608,0.1794,2784.4,2783.9,0.8905569]
[1643752176810,0.1794,2785.2,2783.9,0.8905569]
[1643752177210,0.1794,2785.3,2783.9,0.8905569]
[1643752177517,4.21555548,2785.6,2783.9,0.8905569]
[1643752177518,0.1794,2785.4,2785.1,0.76044258]
[1643752177717,0.1794,2785.4,2784.0,2.516]
[1643752177718,0.34721175,2785.3,2784.6,0.09888769]
[1643752177914,0.1794,2785.8,2784.6,0.3]
[1643752178113,0.1794,2785.8,2784.7,2.52843339]
[1643752178363,0.1794,2785.8,2784.7,2.9954]
[1643752178563,0.1794,2785.8,2784.8,1.25]
[1643752178763,0.18737912,2785.9,2784.8,1.25]
[1643752178764,1.05803045,2785.9,2785.2,0.90913262]
[1643752178965,0.38055823,2785.8,2785.3,0.516]
[1643752179364,0.1794,2786.4,2785.3,0.52830274]
[1643752179567,0.1794,2786.4,2785.4,2.0]
[1643752179766,3.32042731,2786.5,2785.5,0.516]
[1643752179967,3.32042731,2786.5,2785.5,0.52865214]
[1643752180165,3.32042731,2786.5,2785.6,1.90898876]
[1643752180368,3.32042731,2786.5,2785.3,0.08819997]
[1643752180369,3.32042731,2786.5,2785.8,1.079]
[1643752180564,3.64601396,2786.5,2786.0,1.079]
[1643752180768,3.82541396,2786.5,2786.0,1.079]
[1643752180971,3.49982731,2786.5,2786.0,2.94144541]
[1643752181172,3.49982731,2786.5,2786.0,3.45744541]
[1643752181367,3.49982731,2786.5,2786.1,1.079]
[1643752181570,3.32042731,2786.5,2786.1,1.079]
[1643752181769,3.4852606,2787.8,2786.1,1.079]
[1643752182098,3.4852606,2787.8,2786.0,2.37844541]
[1643752182099,0.38495972,2787.0,2786.8,1.079]
[1643752182299,3.5794,2786.9,2786.8,1.079]
[1643752183108,0.44872021,2786.2,2786.0,0.516]
[1643752183308,0.1794,2786.7,2785.8,0.516]
[1643752184305,0.39251664,2786.3,2785.8,0.516]
[1643752184905,0.39251664,2786.3,2785.5,0.01206107]
[1643752184906,0.66927511,2786.1,2785.5,0.01206107]
[1643752185108,0.66927511,2786.1,2785.4,0.1794]
[1643752185109,0.61927511,2786.1,2785.4,0.1794]
[1643752185954,0.42364611,2785.8,2785.4,0.1794]
[1643752186154,0.61927511,2786.1,2785.4,0.1794]
[1643752186155,0.1794,2786.0,2785.4,0.1794]
[1643752187254,0.39605238,2785.8,2785.4,0.1794]
[1643752187469,0.39605238,2785.8,2785.3,0.08819997]
[1643752188660,0.1794,2786.0,2785.3,0.08819997]
[1643752190798,0.4086781,2785.6,2785.3,0.08819997]
[1643752192304,0.1794,2786.0,2785.3,0.08819997]
[1643752192508,1.51766255,2785.9,2785.3,0.95487422]
[1643752192705,0.1794,2786.0,2785.3,0.95487422]
[1643752193006,0.61927511,2786.1,2785.3,0.95487422]
[1643752193212,1.51759534,2786.0,2785.3,0.08819997]
[1643752193471,2.1794,2785.9,2784.7,0.1794]
[1643752193669,2.1794,2785.9,2784.5,0.1794]
[1643752193670,1.51759534,2785.8,2784.5,0.1794]
[1643752193865,1.51759534,2785.8,2784.4,2.3521]
[1643752193866,0.1794,2785.7,2784.4,2.3521]
[1643752194066,1.51759534,2785.6,2784.4,2.3521]
[1643752194469,0.33831935,2785.1,2784.5,0.94595182]
[1643752194668,0.85100896,2785.2,2784.5,0.94595182]
[1643752194869,0.85100896,2785.2,2784.4,0.3439774]
[1643752195470,1.51800784,2785.1,2784.4,0.3439774]
[1643752195667,3.62426813,2785.1,2784.4,0.3439774]
[1643752195872,0.85100896,2785.2,2784.4,0.3439774]
[1643752196069,0.85100896,2785.2,2784.5,0.7967932]
[1643752196269,0.37813734,2785.1,2784.5,0.7967932]
[1643752196670,0.37813734,2785.1,2784.5,0.7467932]
[1643752196869,0.37813734,2785.1,2784.0,0.1794]
[1643752197506,0.85100896,2785.2,2784.0,0.1794]
[1643752198107,0.85100896,2785.2,2784.3,0.80848976]
[1643752198709,0.85100896,2785.2,2784.3,1.22764449]
[1643752199911,0.4273419,2785.1,2784.3,1.22764449]
[1643752200112,0.85100896,2785.2,2784.3,1.22764449]
[1643752200315,0.1794,2785.7,2784.6,0.01206765]
[1643752200516,3.19720096,2785.9,2784.7,0.516]
[1643752200517,3.37660096,2785.9,2784.7,0.516]
[1643752200718,3.19720096,2785.9,2784.8,21.2594]
[1643752200952,3.19720096,2785.9,2784.9,21.596]
[1643752201163,3.19720096,2785.9,2785.2,0.36173367]
[1643752201164,0.36731392,2785.8,2785.2,0.36173367]
[1643752201361,0.36731392,2785.8,2785.4,0.91107421]
[1643752201562,0.36731392,2785.8,2785.1,0.516]
[1643752202558,3.19720096,2785.9,2785.1,0.516]
[1643752202758,3.19720096,2785.9,2785.4,0.71534203]
[1643752202958,3.19720096,2785.9,2785.1,0.516]
[1643752203557,3.57891066,2785.9,2785.2,0.37105364]
[1643752203763,3.57891066,2785.9,2785.1,0.516]
[1643752205209,3.57891066,2785.9,2785.2,0.33835132]
[1643752205409,3.19720096,2785.9,2785.4,0.91340353]
[1643752205813,3.18263643,2785.9,2785.4,2.02940353]
[1643752206012,3.18263643,2785.9,2785.5,1.98140122]
[1643752206211,3.18263643,2785.9,2785.6,0.516]
[1643752206415,3.18263643,2785.9,2785.7,2.23559448]
[1643752206416,2.20878393,2785.9,2785.7,2.23559448]
[1643752206617,0.1794,2787.1,2785.8,7.32876582]
[1643752206813,1.51708975,2787.0,2786.5,0.01281697]
[1643752207014,0.1794,2787.3,2786.6,0.74239994]
[1643752207212,0.1794,2787.9,2786.6,22.42239994]
[1643752207414,1.51677941,2787.8,2786.7,2.1792]
[1643752207612,1.84156304,2787.8,2787.3,0.88778826]
[1643752207814,1.51677941,2787.7,2787.3,0.88778826]
[1643752209158,1.51677941,2787.7,2787.2,0.516]
[1643752209365,0.1792,2787.6,2787.2,0.516]
[1643752209560,1.51677941,2787.5,2787.2,0.516]
[1643752209961,1.69597941,2787.4,2787.2,0.516]
[1643752210162,1.51677941,2787.3,2787.2,0.516]
[1643752210562,1.51688688,2787.3,2787.2,0.516]
[1643752210763,0.1792,2787.7,2787.2,0.516]
[1643752210961,1.51685941,2787.6,2787.2,0.516]
[1643752211161,0.1792,2787.5,2787.2,0.516]
[1643752211365,1.51685941,2787.4,2787.2,0.85381481]
[1643752211568,0.1792,2787.7,2787.3,1.92996254]
[1643752211764,0.1792,2787.7,2787.1,2.05643879]
[1643752212100,0.68057858,2788.5,2787.1,2.05643879]
[1643752212101,0.1792,2788.1,2787.1,2.05643879]
[1643752212303,0.68057858,2788.5,2787.1,2.05643879]
[1643752212304,1.51664662,2788.0,2787.1,2.05643879]
[1643752212507,0.68057858,2788.5,2787.0,3.00726978]
[1643752212508,1.69584662,2787.9,2787.0,3.00726978]
[1643752212700,1.69584662,2787.9,2787.2,21.08]
[1643752212701,0.1792,2787.9,2787.2,21.08]
[1643752212904,0.1792,2787.9,2787.1,2.00771396]
[1643752212905,0.1792,2788.2,2787.7,0.37259694]
[1643752213103,0.68057858,2788.7,2787.7,0.92907627]
[1643752213104,1.51650769,2788.1,2787.7,0.92907627]
[1643752213307,0.05,2788.3,2787.6,0.516]
[1643752213509,1.51647949,2788.2,2787.6,0.516]
[1643752214213,1.51647949,2788.2,2787.1,3.3254]
[1643752214214,2.69050477,2788.1,2787.1,3.3254]
[1643752214409,2.69050477,2788.1,2786.9,1.1792]
[1643752214410,0.72773333,2787.5,2786.9,1.1792]
[1643752214609,2.69050477,2788.1,2786.7,0.1792]
[1643752214610,2.6585233,2787.9,2786.7,0.1792]
[1643752214807,1.51679869,2787.8,2786.7,0.1792]
[1643752215005,0.1792,2787.7,2786.7,0.1792]
[1643752215207,0.39475322,2787.5,2786.8,0.4100306]
[1643752215406,0.39475322,2787.5,2786.7,0.1792]
[1643752216254,2.0,2787.4,2786.7,0.1792]
[1643752216458,0.37952821,2786.8,2786.6,0.22639994]
[1643752216656,0.1794,2787.2,2786.6,0.22639994]
[1643752216859,1.51702036,2787.1,2786.6,0.08819997]
[1643752217058,1.51702036,2787.1,2786.1,0.44294315]
[1643752217059,0.1794,2787.0,2786.1,0.44294315]
[1643752217259,0.1794,2787.0,2785.8,0.1794]
[1643752217260,1.51702036,2786.9,2785.8,0.1794]
[1643752217456,0.1794,2786.8,2785.8,0.87636148]
[1643752217857,0.1794,2787.3,2785.8,0.87636148]
[1643752218059,0.1794,2787.3,2785.9,0.3]
[1643752218060,1.51704458,2787.2,2785.9,0.3]
[1643752218260,0.1794,2787.1,2785.9,1.3]
[1643752218461,0.42290013,2786.5,2785.9,1.4794]
[1643752218661,0.42290013,2786.5,2785.9,0.1794]
[1643752218866,0.42290013,2786.5,2785.6,1.4147]
[1643752219063,2.22362848,2786.4,2785.4,0.01223757]
[1643752219262,2.28607752,2786.4,2785.4,0.01223757]
[1643752219465,0.44063904,2786.0,2785.4,0.34540455]
[1643752219703,0.7929943,2786.2,2785.4,0.34540455]
[1643752220101,0.1794,2786.4,2785.4,0.34540455]
[1643752220308,0.1794,2786.9,2785.4,0.34540455]
[1643752220505,1.51726021,2786.8,2785.4,0.34540455]
[1643752220707,0.39407381,2786.5,2785.4,0.64540455]
[1643752220908,0.1794,2786.4,2785.4,0.34540455]
[1643752221105,2.31657848,2787.0,2785.9,0.83156522]
[1643752221106,0.6765238,2786.8,2785.9,0.83156522]
[1643752221304,1.69661874,2786.7,2785.4,1.64540455]
[1643752221504,1.51721874,2786.6,2785.4,1.64540455]
[1643752221704,0.1794,2786.5,2785.4,0.64540455]
[1643752221905,1.51721874,2786.4,2785.4,0.64540455]
[1643752222109,0.3509435,2786.2,2785.4,0.64540455]
[1643752222307,0.1794,2786.7,2785.4,0.64540455]
[1643752222505,1.5171878,2786.6,2785.9,0.88998618]
[1643752222707,0.1794,2786.5,2785.6,1.0]
[1643752223006,0.1794,2786.5,2785.6,1.3]
[1643752223205,1.51717928,2786.4,2785.5,1.0]
[1643752223468,0.1794,2786.7,2785.6,0.69494]
[1643752223667,0.1794,2786.7,2785.7,24.62591652]
[1643752223869,3.2628,2787.6,2785.8,21.95434]
[1643752223870,0.1794,2787.3,2785.8,21.95434]
[1643752224166,3.94337858,2787.6,2786.0,21.09212141]
[1643752224167,1.5169347,2787.2,2786.0,21.09212141]
[1643752224369,0.38155144,2786.8,2786.1,1.6954]
[1643752224567,1.5169347,2786.7,2786.1,1.516]
[1643752224771,1.5169347,2786.7,2786.1,0.816]
[1643752224968,1.5169347,2786.7,2786.0,0.1794]
[1643752224969,0.71469151,2786.5,2786.0,0.1794]
[1643752225170,1.5169347,2786.4,2786.0,0.1794]
[1643752225368,0.3424419,2786.3,2786.0,0.1794]
[1643752225570,0.3424419,2786.3,2785.3,0.22639994]
[1643752225571,2.85,2786.1,2785.3,0.22639994]
[1643752225869,0.1794,2786.2,2785.3,0.22639994]
[1643752226067,1.51736302,2786.1,2785.3,0.22639994]
[1643752226469,0.78466697,2785.8,2785.3,0.22639994]
[1643752226671,0.1794,2786.0,2785.3,0.60745785]
[1643752226871,1.51747339,2785.9,2785.3,0.60745785]
[1643752227129,2.0,2786.4,2785.3,0.60745785]
[1643752227130,0.1794,2786.3,2785.3,0.60745785]
[1643752227335,1.51740984,2786.2,2785.3,0.60745785]
[1643752227529,0.1794,2786.1,2785.3,0.60745785]
[1643752227730,1.51740984,2786.0,2785.3,0.60745785]
[1643752227931,0.75092085,2786.1,2785.3,0.22639994]
[1643752228130,1.69680335,2786.0,2785.3,0.22639994]
[1643752228331,0.1794,2786.0,2785.3,0.22639994]
[1643752229333,0.33992863,2785.9,2785.3,0.22639994]
[1643752229539,0.1794,2786.0,2785.3,0.22639994]
[1643752229946,1.51746865,2785.9,2785.3,0.22639994]
[1643752230143,1.51746865,2785.9,2785.0,1.1675]
[1643752230144,2.19197861,2785.8,2785.0,1.1675]
[1643752230344,2.19197861,2785.8,2784.7,1.2291]
[1643752230345,1.51746865,2785.7,2784.7,2.2291]
[1643752230543,2.52627083,2785.6,2784.7,2.5291]
[1643752230742,2.52627083,2785.6,2784.7,0.6]
[1643752230965,1.21922993,2785.3,2784.7,0.6]
[1643752231368,1.21922993,2785.3,2784.6,0.6]
[1643752231768,1.21922993,2785.3,2784.4,1.31025089]
[1643752232166,0.1794,2786.0,2784.4,22.39025089]
[1643752232368,1.51761227,2785.9,2784.5,1.0]
[1643752232574,0.1794,2785.8,2784.5,1.0]
[1643752232771,1.51761227,2785.7,2784.5,1.0]
[1643752232973,0.1794,2785.6,2784.5,1.0]
[1643752233372,0.1794,2786.0,2784.5,1.0]
[1643752233572,1.51763613,2785.9,2784.7,0.40635339]
[1643752233773,0.1794,2785.8,2784.7,0.70635339]
[1643752234173,0.1794,2786.1,2784.7,1.00635339]
[1643752234372,1.51752829,2786.0,2784.7,4.60795339]
[1643752234608,2.42168401,2786.5,2785.3,0.32378453]
[1643752234609,1.69692829,2785.9,2785.3,0.32378453]
[1643752234813,0.77742348,2786.1,2785.3,0.32378453]
[1643752235011,1.51747605,2786.0,2785.3,0.32378453]
[1643752235216,1.69687605,2786.0,2785.3,0.32378453]
[1643752235510,2.1794,2786.0,2784.6,1.9534]
[1643752235709,2.1794,2786.0,2784.6,2.0374]
[1643752235710,1.51760848,2785.9,2784.6,2.0374]
[1643752235910,2.1794,2785.8,2784.6,0.4294]
[1643752236114,2.1794,2785.8,2784.1,0.1794]
[1643752236115,1.51760848,2785.7,2784.1,0.1794]
[1643752236309,2.1794,2785.6,2784.0,3.44589994]
[1643752236510,0.7247105,2784.8,2784.0,3.44589994]
[1643752236712,0.7247105,2784.8,2784.0,0.22639994]
[1643752237708,0.7247105,2784.8,2784.2,0.39333806]
[1643752238573,2.1794,2785.4,2784.2,0.39333806]
[1643752238781,1.51790133,2785.3,2784.2,0.39333806]
[1643752238972,2.26574538,2785.2,2784.2,0.39333806]
[1643752239173,0.44511709,2785.1,2784.2,0.39333806]
[1643752239373,0.1794,2785.0,2784.2,0.39333806]
[1643752239573,2.23043668,2785.0,2784.2,0.39333806]
[1643752240177,2.21654739,2785.0,2784.2,0.39333806]
[1643752240372,2.21691488,2785.0,2784.2,0.39333806]
[1643752240578,2.22239363,2785.0,2784.2,0.39333806]
[1643752240874,0.44511709,2785.1,2784.2,0.39333806]
[1643752241072,2.67751676,2785.4,2784.2,0.39333806]
[1643752241276,0.1794,2785.2,2784.2,0.69333806]
[1643752241476,0.1794,2785.2,2784.2,0.39333806]
[1643752241477,2.0465985,2785.2,2784.2,0.39333806]
[1643752241774,1.69738404,2785.1,2784.2,0.39333806]
[1643752242114,0.1794,2785.1,2784.2,0.39333806]
[1643752242514,1.23136498,2785.1,2784.3,0.90131734]
[1643752242817,1.05196498,2785.1,2784.3,0.90131734]
[1643752243016,0.1794,2785.6,2784.3,0.90131734]
[1643752243219,1.51789198,2785.5,2784.3,0.90131734]
[1643752243421,0.1794,2785.4,2784.3,0.90131734]
[1643752243621,1.51789198,2785.3,2784.3,0.90131734]
[1643752243820,3.59761397,2785.3,2784.3,0.90131734]
[1643752244022,1.51789198,2785.2,2784.3,0.90131734]
[1643752244325,1.85983358,2785.1,2784.3,0.90131734]
[1643752244522,0.3419416,2785.1,2784.3,0.90131734]
[1643752245523,0.3419416,2785.1,2784.2,0.39333806]
[1643752246176,1.5180855,2785.0,2784.0,0.22639994]
[1643752246373,1.5180855,2785.0,2784.0,0.13819997]
[1643752246374,1.6974855,2785.0,2784.0,0.13819997]
[1643752246573,3.5180855,2784.9,2784.0,0.13819997]
[1643752246773,1.6974855,2784.8,2784.0,0.13819997]
[1643752246974,1.5180855,2784.7,2784.0,0.13819997]
[1643752247172,0.38787848,2784.1,2783.6,1.1777]
[1643752247374,0.1794,2784.6,2783.4,0.46035192]
[1643752247574,2.0,2784.9,2783.4,0.46035192]
[1643752247575,0.9440462,2784.4,2783.4,0.46035192]
[1643752248379,2.16170388,2784.3,2783.4,0.08819997]
[1643752248776,2.02901697,2784.3,2783.4,0.08819997]
[1643752248979,0.1796,2784.5,2783.4,0.08819997]
[1643752249281,0.1796,2784.7,2783.6,0.01290829]
[1643752249482,3.6102,2784.8,2783.8,21.08]
[1643752249722,0.1794,2785.5,2784.3,0.01239505]
[1643752249925,0.1794,2785.5,2784.6,0.87826147]
[1643752249926,0.79261544,2785.5,2784.6,0.87826147]
[1643752250119,0.79261544,2785.5,2784.3,0.01239505]
[1643752250120,0.1794,2785.4,2784.3,4.62229505]
[1643752250321,0.1794,2785.4,2784.6,0.3]
[1643752250520,0.59601139,2785.4,2784.4,1.0]
[1643752250820,0.59601139,2785.4,2784.3,1.78319505]
[1643752251223,0.59601139,2785.4,2784.3,2.62040347]
[1643752251620,1.51788429,2785.3,2784.4,1.0]
[1643752251824,1.51788429,2785.3,2784.3,1.78319505]
[1643752252020,3.55408158,2785.3,2784.3,1.78319505]
[1643752252219,1.51788429,2785.2,2784.3,1.7708]
[1643752252421,2.16610597,2785.1,2784.3,1.1708]
[1643752252626,3.98767858,2785.9,2784.3,1.1708]
[1643752252627,0.36513432,2784.9,2784.3,1.1708]
[1643752252823,0.1794,2785.3,2784.2,0.39344341]
[1643752253023,1.51798184,2785.2,2784.2,0.39344341]
[1643752253223,2.05470941,2785.1,2784.2,0.39344341]
[1643752253478,2.65090735,2785.5,2784.2,0.39344341]
[1643752253680,1.51802615,2785.4,2784.2,0.39344341]
[1643752253879,0.37609928,2784.9,2784.2,0.39344341]
[1643752254177,0.69774682,2785.0,2784.2,0.39344341]
[1643752254476,0.1794,2785.3,2784.2,0.39344341]
[1643752254676,0.1794,2785.4,2784.2,0.39344341]
[1643752254878,1.51791742,2785.3,2784.0,1.1794]
[1643752255178,0.1794,2785.2,2784.0,1.4794]
[1643752255378,0.71714825,2784.9,2784.0,1.4794]
[1643752256180,0.32983079,2785.0,2784.3,0.38188305]
[1643752256580,0.1794,2785.4,2784.0,0.1794]
[1643752256581,2.04210104,2784.9,2784.0,0.1794]
[1643752256781,2.04210104,2784.9,2783.7,0.25]
[1643752256782,6.8,2784.7,2783.7,0.25]
[1643752257119,6.8,2784.7,2783.0,3.9251]
[1643752257120,0.99999999,2784.4,2782.9,0.25]
[1643752257323,0.99999999,2784.1,2782.9,0.25]
[1643752257519,4.21372208,2784.0,2782.8,0.00198073]
[1643752257717,0.40283154,2783.0,2782.2,1.12884515]
[1643752257918,0.40283154,2783.0,2782.2,0.87884515]
[1643752258723,0.40283154,2783.0,2782.3,0.36265614]
[1643752260523,1.09357507,2783.1,2782.3,0.36265614]
[1643752260728,0.516,2783.8,2782.4,8.81249516]
[1643752260967,0.69259654,2784.4,2782.4,8.81249516]
[1643752260968,0.1796,2783.7,2782.5,0.17894]
[1643752261169,0.1796,2784.3,2783.1,0.01267368]
[1643752261568,0.32919035,2783.8,2783.1,0.43982857]
[1643752261768,1.24590737,2783.8,2783.1,0.01267368]
[1643752262370,0.1796,2784.3,2783.1,0.01267368]
[1643752262568,1.5184884,2784.2,2783.1,0.01267368]
[1643752262768,0.1796,2784.1,2783.1,0.01267368]
[1643752262970,0.1796,2784.3,2783.1,0.01267368]
[1643752263184,1.51844373,2784.2,2783.1,0.01267368]
[1643752263474,0.72746086,2783.8,2783.1,0.01267368]
[1643752263675,0.72746086,2783.8,2783.0,0.3]
[1643752263876,0.72746086,2783.8,2782.9,3.2176805]
[1643752264617,0.1796,2783.9,2783.1,0.33972639]
[1643752265519,0.35455254,2784.0,2782.9,1.1505]
[1643752265719,0.35455254,2784.0,2782.6,0.25]
[1643752265720,1.69830053,2783.9,2782.6,0.25]